fUSD/lending_fUSD_20260401
["ID","MTS","AMOUNT","RATE_DAILY","PERIOD"]
[419183703,1775010652360,-173.654264,0.00016,2]
[419183704,1775010652370,-485.941108,0.00016,2]
[419183705,1775010652380,-174.943365,0.00016,2]
[419183706,1775010652390,-485.224635,0.00016,2]
[419183707,1775010652401,-1313.53875,0.00016,2]
[419183708,1775010652412,-2502.821982,0.00016,2]
[419183709,1775010652421,-485.941108,0.00016,2]
[419183710,1775010652433,-174.943365,0.00016,2]
[419183711,1775010652443,-2502.821982,0.00016,2]
[419183712,1775010652453,-1313.53875,0.00016,2]
[419183713,1775010652463,-151.0,0.00016013,2]
[419183714,1775010652474,-160.0,0.000161,2]
[419183715,1775010652483,-288.86911169,0.00016101,2]
[419183716,1775010652492,-200.0,0.0001616,2]
[419183717,1775010652502,-200.0,0.0001616,2]
[419183718,1775010652511,-200.0,0.0001616,2]
[419183719,1775010652521,-150.0,0.00016161,2]
[419183720,1775010652530,-500.0,0.00016161,2]
[419183721,1775010652540,-150.0,0.00016161,2]
[419183722,1775010652549,-500.0,0.00016161,2]
[419183723,1775010652558,-150.0,0.00016161,2]
[419183724,1775010652567,-500.0,0.00016161,2]
[419183725,1775010652577,-178.86340843,0.00016161,2]
[419183726,1775010652587,-500.0,0.00016161,2]
[419183727,1775010652596,-500.0,0.00016161,2]
[419183728,1775010652606,-500.0,0.00016161,2]
[419183729,1775010652615,-192.86328768,0.00016161,2]
[419183730,1775010652624,-500.0,0.00016161,2]
[419183731,1775010652634,-500.0,0.00016161,2]
[419183732,1775010652643,-500.0,0.00016161,2]
[419183733,1775010652653,-500.0,0.00016161,2]
[419183734,1775010652663,-500.0,0.00016161,2]
[419183735,1775010652672,-699.0,0.00016161,2]
[419183736,1775010652682,-699.0,0.00016161,2]
[419183737,1775010652692,-500.0,0.00016161,2]
[419183738,1775010652701,-500.0,0.00016161,2]
[419183739,1775010652710,-699.0,0.00016161,2]
[419183740,1775010652720,-699.0,0.00016161,2]
[419183741,1775010652731,-500.0,0.00016161,2]
[419183742,1775010652740,-528.88868282,0.00016161,2]
[419183743,1775010652748,-699.0,0.00016161,2]
[419183744,1775010652758,-699.0,0.00016161,2]
[419183745,1775010652767,-150.0,0.00016161,2]
[419183746,1775010652775,-500.0,0.00016161,2]
[419183747,1775010652785,-699.0,0.00016161,2]
[419183748,1775010652795,-150.0,0.00016161,2]
[419183749,1775010652805,-500.0,0.00016161,2]
[419183750,1775010652814,-500.0,0.00016161,2]
[419183751,1775010652822,-500.0,0.00016161,2]
[419183752,1775010652832,-699.0,0.00016161,2]
[419183753,1775010652842,-500.0,0.00016161,2]
[419183754,1775010652852,-500.0,0.00016161,2]
[419183755,1775010652862,-500.0,0.00016161,2]
[419183756,1775010652871,-150.0,0.00016161,2]
[419183757,1775010652880,-699.0,0.00016161,2]
[419183758,1775010652889,-233.58894836,0.00016161,2]
[419183759,1775010652898,-500.0,0.00016161,2]
[419183760,1775010652907,-220.96690893,0.00016161,2]
[419183761,1775010652916,-500.0,0.00016161,2]
[419183762,1775010652926,-150.0,0.00016161,2]
[419183763,1775010652936,-699.0,0.00016161,2]
[419183764,1775010652946,-500.0,0.00016161,2]
[419183765,1775010652956,-500.0,0.00016161,2]
[419183766,1775010652966,-699.0,0.00016161,2]
[419183767,1775010652975,-250.64656096,0.00016161,2]
[419183768,1775010652985,-500.0,0.00016161,2]
[419183769,1775010652994,-500.0,0.00016161,2]
[419183770,1775010653004,-699.0,0.00016161,2]
[419183771,1775010653014,-500.0,0.00016161,2]
[419183772,1775010653026,-699.0,0.00016161,2]
[419183773,1775010653036,-500.0,0.00016161,2]
[419183774,1775010653048,-500.0,0.00016161,2]
[419183775,1775010653058,-699.0,0.00016161,2]
[419183776,1775010653069,-500.0,0.00016161,2]
[419183777,1775010653079,-150.0,0.00016161,2]
[419183778,1775010653088,-500.0,0.00016161,2]
[419183779,1775010653098,-363.12381504,0.00016161,2]
[419183780,1775010653109,-699.0,0.00016161,2]
[419183781,1775010653119,-500.0,0.00016161,2]
[419183782,1775010653131,-207.81624386,0.00016161,2]
[419183783,1775010653144,-500.0,0.00016161,2]
[419183784,1775010653155,-699.0,0.00016161,2]
[419183785,1775010653166,-500.0,0.00016161,2]
[419183786,1775010653175,-587.70211459,0.00016161,2]
[419183787,1775010653185,-500.0,0.00016161,2]
[419183788,1775010653201,-500.0,0.00016161,2]
[419183789,1775010653211,-699.0,0.00016161,2]
[419183790,1775010653222,-500.0,0.00016161,2]
[419183791,1775010653232,-626.71602316,0.00016161,2]
[419183792,1775010653241,-699.0,0.00016161,2]
[419183793,1775010653250,-699.0,0.00016161,2]
[419183794,1775010653260,-699.0,0.00016161,2]
[419183795,1775010653269,-699.0,0.00016161,2]
[419183796,1775010653279,-699.0,0.00016161,2]
[419183797,1775010653288,-699.0,0.00016161,2]
[419183798,1775010653298,-713.91512659,0.00016161,2]
[419183799,1775010653307,-500.0,0.00016164,2]
[419183800,1775010653316,-158.91030595,0.00016164,2]
[419183801,1775010653328,-500.0,0.00016164,2]
[419183802,1775010653338,-500.0,0.00016164,2]
[419183803,1775010653347,-500.0,0.00016164,2]
[419183804,1775010653357,-500.0,0.00016164,2]
[419183805,1775010653366,-500.0,0.00016164,2]
[419183806,1775010653375,-500.0,0.00016164,2]
[419183807,1775010653384,-500.0,0.00016164,2]
[419183808,1775010653394,-500.0,0.00016164,2]
[419183809,1775010653403,-500.0,0.00016164,2]
[419183810,1775010653412,-500.0,0.00016164,2]
[419183811,1775010653421,-500.0,0.00016164,2]
[419183812,1775010653430,-436.48877466,0.00016164,2]
[419183813,1775010653439,-500.0,0.00016164,2]
[419183814,1775010653448,-500.0,0.00016164,2]
[419183815,1775010653458,-156.78867168,0.00016164,2]
[419183816,1775010653468,-500.0,0.00016164,2]
[419183817,1775010653477,-500.0,0.00016164,2]
[419183818,1775010653486,-330.83967565,0.00016164,2]
[419183819,1775010653495,-500.0,0.00016164,2]
[419183820,1775010653504,-500.0,0.00016164,2]
[419183821,1775010653514,-500.0,0.00016164,2]
[419183822,1775010653523,-500.0,0.00016164,2]
[419183823,1775010653532,-500.0,0.00016164,2]
[419183824,1775010653541,-500.0,0.00016164,2]
[419183825,1775010653551,-500.0,0.00016164,2]
[419183826,1775010653560,-500.0,0.00016164,2]
[419183827,1775010653569,-500.0,0.00016164,2]
[419183828,1775010653579,-156.13980161,0.00016164,2]
[419183829,1775010653588,-3178.66,0.00016282,2]
[419183830,1775010653597,-200.0,0.00016322,2]
[419183831,1775010653607,-200.0,0.00016322,2]
[419183832,1775010653616,-200.0,0.00016322,2]
[419183833,1775010653625,-304.54048322,0.00016327,2]
[419183834,1775010653634,-345.52800169,0.00016327,2]
[419183835,1775010653643,-233.37966558,0.00016394,2]
[419183836,1775010653653,-150.0,0.000164,2]
[419183837,1775010653662,-213.0,0.000164,2]
[419183838,1775010653671,-200.11052162,0.000164,2]
[419183839,1775010653681,-494.25,0.00016428,2]
[419183840,1775010653690,-352.277952,0.00016429,7]
[419183841,1775010653698,-1216.86,0.00016438,2]
[419183842,1775010653707,-600.29,0.00016438,2]
[419183843,1775010653716,-500.0,0.00016438,2]
[419183844,1775010653725,-500.0,0.00016438,2]
[419183845,1775010653735,-289.40261194,0.00016438,2]
[419183846,1775010653745,-2500.0,0.00016438,2]
[419183847,1775010653755,-2500.0,0.00016438,2]
[419183848,1775010653764,-2500.0,0.00016438,2]
[419183849,1775010653775,-2500.0,0.00016438,2]
[419183850,1775010653784,-2500.0,0.00016438,2]
[419183851,1775010653794,-2500.0,0.00016438,2]
[419183852,1775010653803,-1402.81847652,0.00016438,2]
[419183853,1775010653813,-644.63,0.00016438,2]
[419183854,1775010653822,-250.0,0.00016438,2]
[419183855,1775010653831,-164.36,0.00016438,2]
[419183856,1775010653840,-151.0,0.00016438,2]
[419183857,1775010653849,-151.0,0.00016438,2]
[419183858,1775010653858,-253.605938,0.00016439,7]
[419183859,1775010653867,-6453.0,0.00016475,2]
[419183860,1775010653876,-200.0,0.00016485,2]
[419183861,1775010653884,-200.0,0.00016485,2]
[419183862,1775010653893,-200.0,0.00016485,2]
[419183863,1775010653902,-200.0,0.0001665,2]
[419183864,1775010653911,-200.0,0.0001665,2]
[419183865,1775010653920,-200.0,0.0001665,2]
[419183866,1775010653929,-3178.66,0.0001667,2]
[419183867,1775010653938,-409.734,0.000167,22]
[419183868,1775010653947,-157.21,0.00016712,2]
[419183869,1775010653956,-159.21653029,0.00016849,2]
[419183870,1775010653966,-200.0,0.000169,6]
[419183871,1775010653975,-1180.36,0.00016931,2]
[419183872,1775010653986,-582.27,0.00016931,2]
[419183873,1775010654316,-504.0,0.0001697,5]
[419183874,1775010654333,-350.0,0.00017,2]
[419183875,1775010654342,-494.25,0.00017036,2]
[419183876,1775010654351,-3178.66,0.00017058,2]
[419183877,1775010654360,-2000.0,0.00017234,2]
[419183878,1775010654370,-1143.85,0.00017424,2]
[419183879,1775010654379,-163.12,0.00017456,2]
[419183880,1775010654389,-155.52529498,0.00017519,2]
[419183881,1775010654399,-494.25,0.00017645,2]
[419183882,1775010654409,-212.0,0.00017895,2]
[419183883,1775010654419,-159.23,0.000179,2]
[419183884,1775010654429,-10233.4723,0.00017911,2]
[419183885,1775010654439,-805.6,0.00017944,2]
[419183886,1775010654448,-883.13,0.00017976,2]
[419183887,1775010654458,-526.7502,0.00018,27]
[419183888,1775010654469,-4126.945995,0.00018025,2]
[419183889,1775010654478,-4126.945995,0.00018025,2]
[419183890,1775010654488,-4126.945995,0.00018025,2]
[419183891,1775010654498,-151.0,0.00018025,2]
[419183892,1775010654508,-151.0,0.00018025,2]
[419183893,1775010654518,-4126.945995,0.00018025,2]
[419183894,1775010654528,-151.0,0.00018025,2]
[419183895,1775010654538,-151.0,0.00018025,2]
[419183896,1775010654547,-262.000422,0.00018025,2]
[419183897,1775010654557,-302.093611,0.00018025,2]
[419183898,1775010654567,-151.0,0.00018025,2]
[419183899,1775010654576,-1002.143556,0.00018025,2]
[419183900,1775010654586,-262.000422,0.00018025,2]
[419183901,1775010654595,-839.001389,0.00018025,2]
[419183902,1775010654605,-151.0,0.00018025,2]
[419183903,1775010654614,-302.093611,0.00018025,2]
[419183904,1775010654623,-151.0,0.00018025,2]
[419183905,1775010654633,-151.0,0.00018025,2]
[419183906,1775010654642,-151.0,0.00018025,2]
[419183907,1775010654651,-262.000422,0.00018025,2]
[419183908,1775010654660,-1002.143556,0.00018025,2]
[419183909,1775010654671,-151.0,0.00018025,2]
[419183910,1775010654680,-839.001389,0.00018025,2]
[419183911,1775010654690,-178.009438,0.00018025,2]
[419183912,1775010654699,-302.093611,0.00018025,2]
[419183913,1775010654709,-175.599481,0.00018025,2]
[419183914,1775010654718,-262.000422,0.00018025,2]
[419183915,1775010654728,-1002.143556,0.00018025,2]
[419183916,1775010654737,-190.800156,0.00018025,2]
[419183917,1775010654746,-839.001389,0.00018025,2]
[419183918,1775010654755,-302.093611,0.00018025,2]
[419183919,1775010654764,-1002.143556,0.00018025,2]
[419183920,1775010654773,-175.599481,0.00018025,2]
[419183921,1775010654783,-273.873245,0.00018025,2]
[419183922,1775010654793,-237.755723,0.00018025,2]
[419183923,1775010654802,-839.001389,0.00018025,2]
[419183924,1775010654812,-485.818484,0.00018025,2]
[419183925,1775010654823,-175.599481,0.00018025,2]
[419183926,1775010654833,-175.691598,0.00018025,2]
[419183927,1775010654843,-2296.649879,0.00018025,2]
[419183928,1775010654855,-273.873245,0.00018025,2]
[419183929,1775010654864,-237.755723,0.00018025,2]
[419183930,1775010654875,-485.818484,0.00018025,2]
[419183931,1775010654885,-1163.182786,0.00018025,2]
[419183932,1775010654896,-170.636045,0.00018025,2]
[419183933,1775010654905,-175.599481,0.00018025,2]
[419183934,1775010654916,-2296.649879,0.00018025,2]
[419183935,1775010654927,-175.691598,0.00018025,2]
[419183936,1775010654937,-273.873245,0.00018025,2]
[419183937,1775010654947,-151.0,0.00018025,2]
[419183938,1775010654957,-237.755723,0.00018025,2]
[419183939,1775010654967,-485.818484,0.00018025,2]
[419183940,1775010654977,-1163.182786,0.00018025,2]
[419183941,1775010654987,-170.636045,0.00018025,2]
[419183942,1775010654995,-2296.649879,0.00018025,2]
[419183943,1775010655006,-196.147739,0.00018025,2]
[419183944,1775010655018,-273.873245,0.00018025,2]
[419183945,1775010655028,-175.691598,0.00018025,2]
[419183946,1775010655039,-151.0,0.00018025,2]
[419183947,1775010655050,-237.755723,0.00018025,2]
[419183948,1775010655061,-485.818484,0.00018025,2]
[419183949,1775010655071,-1163.182786,0.00018025,2]
[419183950,1775010655080,-170.636045,0.00018025,2]
[419183951,1775010655090,-2296.649879,0.00018025,2]
[419183952,1775010655099,-196.147739,0.00018025,2]
[419183953,1775010655108,-175.691598,0.00018025,2]
[419183954,1775010655117,-151.0,0.00018025,2]
[419183955,1775010655129,-1163.182786,0.00018025,2]
[419183956,1775010655139,-170.636045,0.00018025,2]
[419183957,1775010655148,-151.0,0.00018025,2]
[419183958,1775010655159,-314.772131,0.00018025,2]
[419183959,1775010655168,-196.147739,0.00018025,2]
[419183960,1775010655179,-151.0,0.00018025,2]
[419183961,1775010655190,-314.772131,0.00018025,2]
[419183962,1775010655200,-196.147739,0.00018025,2]
[419183963,1775010655210,-206.472759,0.00018025,2]
[419183964,1775010655220,-560.669219,0.00018025,2]
[419183965,1775010655231,-151.0,0.00018025,2]
[419183966,1775010655239,-557.258778,0.00018025,2]
[419183967,1775010655249,-314.772131,0.00018025,2]
[419183968,1775010655260,-206.472759,0.00018025,2]
[419183969,1775010655269,-560.669219,0.00018025,2]
[419183970,1775010655278,-3080.917359,0.00018025,2]
[419183971,1775010655287,-557.258778,0.00018025,2]
[419183972,1775010655296,-314.772131,0.00018025,2]
[419183973,1775010655306,-206.472759,0.00018025,2]
[419183974,1775010655315,-993.841162,0.00018025,2]
[419183975,1775010655326,-560.669219,0.00018025,2]
[419183976,1775010655337,-3080.917359,0.00018025,2]
[419183977,1775010655346,-178.645392,0.00018025,2]
[419183978,1775010655356,-557.258778,0.00018025,2]
[419183979,1775010655366,-206.472759,0.00018025,2]
[419183980,1775010655376,-993.841162,0.00018025,2]
[419183981,1775010655385,-560.669219,0.00018025,2]
[419183982,1775010655394,-178.645392,0.00018025,2]
[419183983,1775010655403,-3080.917359,0.00018025,2]
[419183984,1775010655413,-557.258778,0.00018025,2]
[419183985,1775010655422,-993.841162,0.00018025,2]
[419183986,1775010655432,-178.645392,0.00018025,2]
[419183987,1775010655441,-3080.917359,0.00018025,2]
[419183988,1775010655450,-993.841162,0.00018025,2]
[419183989,1775010655460,-178.645392,0.00018025,2]
[419183990,1775010655469,-151.0,0.00018025,2]
[419183991,1775010655478,-151.0,0.00018025,2]
[419183992,1775010655488,-151.0,0.00018025,2]
[419183993,1775010655498,-151.0,0.00018025,2]
[419183994,1775010655508,-151.0,0.00018025,2]
[419183995,1775010655518,-151.0,0.00018025,2]
[419183996,1775010655527,-2349.593397,0.00018025,2]
[419183997,1775010655538,-2349.593397,0.00018025,2]
[419183998,1775010655547,-2349.593397,0.00018025,2]
[419183999,1775010655557,-873.524236,0.00018025,2]
[419184000,1775010655567,-2349.593397,0.00018025,2]
[419184001,1775010655577,-873.524236,0.00018025,2]
[419184002,1775010655586,-873.524236,0.00018025,2]
[419184003,1775010655595,-268.345093,0.00018025,2]
[419184004,1775010655604,-873.524236,0.00018025,2]
[419184005,1775010655613,-268.345093,0.00018025,2]
[419184006,1775010655623,-268.345093,0.00018025,2]
[419184007,1775010655632,-268.345093,0.00018025,2]
[419184008,1775010655641,-1206.8072914,0.00018025,2]
[419184009,1775010655651,-139926.1737402,0.00018025,2]
[419184010,1775010655660,-1107.35,0.00018082,2]
[419184011,1775010655669,-1946.0,0.00018122,2]
[419184012,1775010655679,-262.23,0.00018216,2]
[419184013,1775010655688,-494.25,0.00018253,2]
[419184014,1775010655697,-504.0,0.00018256,6]
[419184015,1775010655707,-151.0,0.00018477,2]
[419184016,1775010655716,-483.27777,0.00018477,2]
[419184017,1775010655725,-151.0,0.00018477,2]
[419184018,1775010655734,-483.27777,0.00018477,2]
[419184019,1775010655744,-153.242848,0.00018477,2]
[419184020,1775010655753,-457.498785,0.00018477,2]
[419184021,1775010655762,-483.27777,0.00018477,2]
[419184022,1775010655771,-153.242848,0.00018477,2]
[419184023,1775010655781,-151.0,0.00018477,2]
[419184024,1775010655790,-457.498785,0.00018477,2]
[419184025,1775010655799,-151.0,0.00018477,2]
[419184026,1775010655808,-483.27777,0.00018477,2]
[419184027,1775010655817,-457.498785,0.00018477,2]
[419184028,1775010655826,-151.0,0.00018477,2]
[419184029,1775010655836,-153.242848,0.00018477,2]
[419184030,1775010655845,-457.498785,0.00018477,2]
[419184031,1775010655854,-151.0,0.00018477,2]
[419184032,1775010655863,-153.242848,0.00018477,2]
[419184033,1775010655872,-151.0,0.00018477,2]
[419184034,1775010655882,-151.0,0.00018477,2]
[419184035,1775010655891,-151.0,0.00018477,2]
[419184036,1775010655900,-151.0,0.00018477,2]
[419184037,1775010655909,-151.0,0.00018477,2]
[419184038,1775010655919,-196.588519,0.00018477,2]
[419184039,1775010655928,-151.0,0.00018477,2]
[419184040,1775010655939,-1663.408312,0.00018477,2]
[419184041,1775010655951,-592.636849,0.00018477,2]
[419184042,1775010655961,-151.0,0.00018477,2]
[419184043,1775010655971,-1663.408312,0.00018477,2]
[419184044,1775010655980,-592.636849,0.00018477,2]
[419184045,1775010655990,-151.0,0.00018477,2]
[419184046,1775010655999,-1663.408312,0.00018477,2]
[419184047,1775010656009,-592.636849,0.00018477,2]
[419184048,1775010656019,-1663.408312,0.00018477,2]
[419184049,1775010656029,-151.0,0.00018477,2]
[419184050,1775010656039,-592.636849,0.00018477,2]
[419184051,1775010656048,-151.0,0.00018477,2]
[419184052,1775010656058,-151.0,0.00018477,2]
[419184053,1775010656067,-320.700605,0.00018477,2]
[419184054,1775010656077,-151.0,0.00018477,2]
[419184055,1775010656086,-320.700605,0.00018477,2]
[419184056,1775010656095,-320.700605,0.00018477,2]
[419184057,1775010656104,-315.586112,0.00018477,2]
[419184058,1775010656114,-151.0,0.00018477,2]
[419184059,1775010656123,-776.330977,0.00018477,2]
[419184060,1775010656132,-315.586112,0.00018477,2]
[419184061,1775010656141,-320.700605,0.00018477,2]
[419184062,1775010656151,-151.0,0.00018477,2]
[419184063,1775010656160,-151.0,0.00018477,2]
[419184064,1775010656169,-776.330977,0.00018477,2]
[419184065,1775010656179,-315.586112,0.00018477,2]
[419184066,1775010656188,-151.0,0.00018477,2]
[419184067,1775010656197,-315.586112,0.00018477,2]
[419184068,1775010656207,-151.0,0.00018477,2]
[419184069,1775010656216,-151.0,0.00018477,2]
[419184070,1775010656225,-151.0,0.00018477,2]
[419184071,1775010656235,-776.330977,0.00018477,2]
[419184072,1775010656244,-985.594617,0.00018477,2]
[419184073,1775010656254,-151.0,0.00018477,2]
[419184074,1775010656263,-253.666059,0.00018477,2]
[419184075,1775010656272,-151.0,0.00018477,2]
[419184076,1775010656281,-204.743484,0.00018477,2]
[419184077,1775010656291,-985.594617,0.00018477,2]
[419184078,1775010656301,-776.330977,0.00018477,2]
[419184079,1775010656310,-1057.162612,0.00018477,2]
[419184080,1775010656320,-253.666059,0.00018477,2]
[419184081,1775010656329,-583.935786,0.00018477,2]
[419184082,1775010656338,-204.743484,0.00018477,2]
[419184083,1775010656347,-985.594617,0.00018477,2]
[419184084,1775010656356,-210.578924,0.00018477,2]
[419184085,1775010656365,-253.666059,0.00018477,2]
[419184086,1775010656374,-583.935786,0.00018477,2]
[419184087,1775010656383,-204.743484,0.00018477,2]
[419184088,1775010656393,-210.578924,0.00018477,2]
[419184089,1775010656402,-985.594617,0.00018477,2]
[419184090,1775010656411,-1445.817213,0.00018477,2]
[419184091,1775010656420,-253.666059,0.00018477,2]
[419184092,1775010656429,-583.935786,0.00018477,2]
[419184093,1775010656439,-1057.162612,0.00018477,2]
[419184094,1775010656448,-204.743484,0.00018477,2]
[419184095,1775010656457,-210.578924,0.00018477,2]
[419184096,1775010656467,-439.763631,0.00018477,2]
[419184097,1775010656476,-1445.817213,0.00018477,2]
[419184098,1775010656485,-292.439697,0.00018477,2]
[419184099,1775010656500,-583.935786,0.00018477,2]
[419184100,1775010656510,-1057.162612,0.00018477,2]
[419184101,1775010656520,-210.578924,0.00018477,2]
[419184102,1775010656530,-1445.817213,0.00018477,2]
[419184103,1775010656539,-439.763631,0.00018477,2]
[419184104,1775010656548,-292.439697,0.00018477,2]
[419184105,1775010656558,-1057.162612,0.00018477,2]
[419184106,1775010656569,-1445.817213,0.00018477,2]
[419184107,1775010656578,-292.439697,0.00018477,2]
[419184108,1775010656588,-152.183537,0.00018477,2]
[419184109,1775010656597,-205.686774,0.00018477,2]
[419184110,1775010656607,-292.439697,0.00018477,2]
[419184111,1775010656616,-1207.311356,0.00018477,2]
[419184112,1775010656627,-205.686774,0.00018477,2]
[419184113,1775010656638,-439.763631,0.00018477,2]
[419184114,1775010656648,-1207.311356,0.00018477,2]
[419184115,1775010656659,-205.686774,0.00018477,2]
[419184116,1775010656825,-603.555246,0.00018477,2]
[419184117,1775010656835,-439.763631,0.00018477,2]
[419184118,1775010656845,-167.522663,0.00018477,2]
[419184119,1775010656856,-205.686774,0.00018477,2]
[419184120,1775010656867,-235.924091,0.00018477,2]
[419184121,1775010656876,-603.555246,0.00018477,2]
[419184122,1775010656885,-235.924091,0.00018477,2]
[419184123,1775010656894,-603.555246,0.00018477,2]
[419184124,1775010656903,-235.924091,0.00018477,2]
[419184125,1775010656912,-603.555246,0.00018477,2]
[419184126,1775010656923,-235.924091,0.00018477,2]
[419184127,1775010656933,-151.0,0.00018477,2]
[419184128,1775010656944,-1207.311356,0.00018477,2]
[419184129,1775010656960,-151.0,0.00018477,2]
[419184130,1775010656970,-1207.311356,0.00018477,2]
[419184131,1775010656981,-958.80957,0.00018477,2]
[419184132,1775010656991,-958.80957,0.00018477,2]
[419184133,1775010657001,-158.057358,0.00018477,2]
[419184134,1775010657011,-1045.235566,0.00018477,2]
[419184135,1775010657022,-958.80957,0.00018477,2]
[419184136,1775010657032,-158.057358,0.00018477,2]
[419184137,1775010657043,-2566.271614,0.00018477,2]
[419184138,1775010657052,-1045.235566,0.00018477,2]
[419184139,1775010657061,-958.80957,0.00018477,2]
[419184140,1775010657070,-158.057358,0.00018477,2]
[419184141,1775010657079,-2566.271614,0.00018477,2]
[419184142,1775010657088,-1045.235566,0.00018477,2]
[419184143,1775010657097,-158.057358,0.00018477,2]
[419184144,1775010657106,-1045.235566,0.00018477,2]
[419184145,1775010657115,-2566.271614,0.00018477,2]
[419184146,1775010657124,-563.06762,0.00018477,2]
[419184147,1775010657134,-649.377886,0.00018477,2]
[419184148,1775010657143,-2566.271614,0.00018477,2]
[419184149,1775010657154,-563.06762,0.00018477,2]
[419184150,1775010657164,-649.377886,0.00018477,2]
[419184151,1775010657173,-454.900784,0.00018477,2]
[419184152,1775010657183,-563.06762,0.00018477,2]
[419184153,1775010657192,-649.377886,0.00018477,2]
[419184154,1775010657201,-454.900784,0.00018477,2]
[419184155,1775010657211,-563.06762,0.00018477,2]
[419184156,1775010657220,-151.0,0.00018477,2]
[419184157,1775010657229,-649.377886,0.00018477,2]
[419184158,1775010657238,-151.0,0.00018477,2]
[419184159,1775010657248,-454.900784,0.00018477,2]
[419184160,1775010657257,-151.0,0.00018477,2]
[419184161,1775010657267,-151.0,0.00018477,2]
[419184162,1775010657276,-373.639694,0.00018477,2]
[419184163,1775010657286,-454.900784,0.00018477,2]
[419184164,1775010657295,-373.639694,0.00018477,2]
[419184165,1775010657304,-151.0,0.00018477,2]
[419184166,1775010657313,-151.0,0.00018477,2]
[419184167,1775010657322,-373.639694,0.00018477,2]
[419184168,1775010657331,-1608.986935,0.00018477,2]
[419184169,1775010657340,-151.0,0.00018477,2]
[419184170,1775010657350,-374.687718,0.00018477,2]
[419184171,1775010657360,-892.253268,0.00018477,2]
[419184172,1775010657369,-373.639694,0.00018477,2]
[419184173,1775010657381,-374.687718,0.00018477,2]
[419184174,1775010657390,-151.0,0.00018477,2]
[419184175,1775010657400,-892.253268,0.00018477,2]
[419184176,1775010657410,-151.0,0.00018477,2]
[419184177,1775010657420,-374.687718,0.00018477,2]
[419184178,1775010657430,-3433.898481,0.00018477,2]
[419184179,1775010657440,-892.253268,0.00018477,2]
[419184180,1775010657450,-1608.986935,0.00018477,2]
[419184181,1775010657460,-151.0,0.00018477,2]
[419184182,1775010657472,-1777.572748,0.00018477,2]
[419184183,1775010657483,-3433.898481,0.00018477,2]
[419184184,1775010657492,-374.687718,0.00018477,2]
[419184185,1775010657502,-1032.993865,0.00018477,2]
[419184186,1775010657511,-892.253268,0.00018477,2]
[419184187,1775010657520,-1608.986935,0.00018477,2]
[419184188,1775010657532,-1777.572748,0.00018477,2]
[419184189,1775010657541,-3433.898481,0.00018477,2]
[419184190,1775010657550,-1032.993865,0.00018477,2]
[419184191,1775010657560,-1608.986935,0.00018477,2]
[419184192,1775010657569,-810.172394,0.00018477,2]
[419184193,1775010657579,-1777.572748,0.00018477,2]
[419184194,1775010657588,-3433.898481,0.00018477,2]
[419184195,1775010657598,-151.0,0.00018477,2]
[419184196,1775010657607,-1032.993865,0.00018477,2]
[419184197,1775010657617,-810.172394,0.00018477,2]
[419184198,1775010657627,-1777.572748,0.00018477,2]
[419184199,1775010657638,-1032.993865,0.00018477,2]
[419184200,1775010657647,-810.172394,0.00018477,2]
[419184201,1775010657656,-201.971464,0.00018477,2]
[419184202,1775010657666,-810.172394,0.00018477,2]